bitfinex/quotes_SOLUSD_20250410
["timestamp","ask_amount","ask_price","bid_price","bid_amount"]
[1744286986806,0.063,113.53,113.52,54.89276433]
[1744286987329,0.063,113.53,113.52,27.742972]
[1744286987533,0.063,113.53,113.52,0.28432314]
[1744286987943,0.063,113.53,113.51,89.2476]
[1744286988241,0.063,113.53,113.52,0.28432314]
[1744286988407,0.063,113.53,113.52,18.933972]
[1744286988606,0.063,113.53,113.52,46.08376433]
[1744286989024,0.063,113.53,113.52,18.933972]
[1744286989414,0.063,113.53,113.51,87.5883]
[1744286989621,27.21279233,113.53,113.51,87.5883]
[1744286990018,0.063,113.53,113.51,87.5883]
[1744286990621,0.063,113.53,113.51,6.3883]
[1744286992237,0.063,113.53,113.52,0.28432314]
[1744286994932,0.063,113.53,113.52,18.933972]
[1744286995119,0.063,113.53,113.52,54.89276433]
[1744286996838,0.063,113.53,113.52,136.09276433]
[1744286997547,0.063,113.53,113.52,100.133972]
[1744286998534,0.063,113.53,113.52,136.09276433]
[1744286998735,0.063,113.53,113.52,108.942972]
[1744286999044,0.063,113.53,113.52,100.133972]
[1744286999547,0.063,113.53,113.52,108.942972]
[1744286999753,0.063,113.53,113.52,136.09276433]
[1744287000932,0.063,113.54,113.52,163.24255666]
[1744287001258,0.063,113.54,113.53,47.61236433]
[1744287001634,0.063,113.54,113.53,20.462572]
[1744287001843,0.063,113.54,113.53,0.28432314]
[1744287002952,0.063,113.54,113.52,0.28432314]
[1744287004831,27.21279233,113.54,113.49,14.9296]
[1744287005060,27.14979233,113.53,113.51,0.28432314]
[1744287005233,27.21279233,113.54,113.51,0.28432314]
[1744287005641,0.063,113.54,113.51,0.28432314]
[1744287005842,27.14979233,113.53,113.51,0.28432314]
[1744287006462,27.21279233,113.54,113.51,0.28432314]
[1744287007849,27.14979233,113.53,113.5,0.28432314]
[1744287008056,27.14979233,113.53,113.5,0.14216157]
[1744287008258,27.14979233,113.53,113.5,0.28432314]
[1744287009068,27.21279233,113.54,113.5,0.28432314]
[1744287009448,16.94638217,113.52,113.5,0.28432314]
[1744287009745,16.94638217,113.51,113.49,6.1188]
[1744287010458,16.94638217,113.5,113.46,6.0163]
[1744287010666,8.8705,113.54,113.46,6.0163]
[1744287010667,16.94638217,113.49,113.46,6.0163]
[1744287010856,16.94638217,113.49,113.47,0.28432314]
[1744287011039,16.94638217,113.48,113.45,81.23]
[1744287011234,16.94638217,113.49,113.45,90.0441]
[1744287011433,26.0,113.52,113.47,0.14216157]
[1744287011655,16.94638217,113.51,113.47,0.14216157]
[1744287011862,0.063,113.54,113.49,0.28432314]
[1744287012067,16.94638217,113.53,113.49,0.28432314]
[1744287012369,16.94638217,113.5,113.48,0.28432314]
[1744287012565,16.94638217,113.5,113.46,81.2]
[1744287012773,16.94638217,113.5,113.47,0.28432314]
[1744287013054,16.94638217,113.49,113.47,0.14216157]
[1744287013258,16.94638217,113.49,113.47,0.28432314]
[1744287013637,16.94638217,113.49,113.46,81.2]
[1744287014238,16.94638217,113.48,113.46,81.2]
[1744287014438,16.94638217,113.48,113.45,0.31432314]
[1744287014953,8.8106,113.5,113.45,0.31432314]
[1744287014954,16.94638217,113.47,113.45,0.31432314]
[1744287015142,16.94638217,113.46,113.45,0.03]
[1744287015341,33.89276434,113.46,113.45,0.03]
[1744287015647,42.70636434,113.46,113.45,0.03]
[1744287015877,33.89276434,113.46,113.45,0.03]
[1744287016450,16.94638217,113.46,113.45,0.03]
[1744287016654,42.70636434,113.46,113.45,0.03]
[1744287016868,33.89276434,113.46,113.45,0.03]
[1744287017161,42.70636434,113.46,113.45,0.03]
[1744287017360,16.94638217,113.41,113.39,0.03]
[1744287017656,26.0,113.43,113.4,0.28432314]
[1744287017849,16.94638217,113.42,113.39,0.03]
[1744287018042,16.94638217,113.41,113.39,0.03]
[1744287018261,16.94638217,113.4,113.39,0.03]
[1744287018462,26.0,113.42,113.39,0.03]
[1744287018662,16.94638217,113.4,113.39,0.03]
[1744287019162,26.0,113.42,113.39,0.03]
[1744287019364,27.18108156,113.4,113.39,0.03]
[1744287022037,63.18046312,113.4,113.39,0.03]
[1744287025463,27.18108156,113.4,113.39,0.03]
[1744287025644,54.36216312,113.4,113.39,0.03]
[1744287025845,73.01181198,113.4,113.38,0.03]
[1744287026068,27.18108156,113.39,113.38,0.03]
[1744287026857,36.00018156,113.39,113.38,0.03]
[1744287028172,27.18108156,113.39,113.38,0.03]
[1744287028666,103.68406157,113.42,113.38,0.03]
[1744287028667,81.5,113.42,113.38,0.03]
[1744287028860,53.18108156,113.4,113.38,0.03]
[1744287029063,27.18108156,113.4,113.38,0.03]
[1744287031874,27.18108156,113.42,113.38,6.1605]
[1744287032067,27.18108156,113.42,113.38,14.9796]
[1744287032255,81.5,113.46,113.39,46.11505356]
[1744287032675,108.68108156,113.46,113.41,27.18108156]
[1744287032858,27.18108156,113.45,113.42,0.28432314]
[1744287033670,27.18108156,113.46,113.42,0.28432314]
[1744287034381,302.26,113.48,113.43,8.816]
[1744287034552,27.18108156,113.47,113.43,8.816]
[1744287034874,27.18108156,113.47,113.44,6.6301]
[1744287035462,27.18108156,113.47,113.44,15.445]
[1744287036172,302.26,113.48,113.44,15.445]
[1744287036355,329.44108156,113.48,113.44,15.445]
[1744287038381,27.18108156,113.47,113.44,15.445]
[1744287038678,27.18108156,113.48,113.45,0.28432314]
[1744287038882,27.18108156,113.5,113.45,46.11505356]
[1744287039058,27.18108156,113.49,113.45,18.933972]
[1744287039258,27.18108156,113.48,113.45,0.28432314]
[1744287039460,27.18108156,113.47,113.44,6.6301]
[1744287039782,27.18108156,113.46,113.44,6.6301]
[1744287040573,27.18108156,113.45,113.44,6.6301]
[1744287041176,27.18108156,113.46,113.44,6.6301]
[1744287041979,27.18108156,113.45,113.44,6.6301]
[1744287042180,27.18108156,113.46,113.44,6.6301]
[1744287043259,27.18108156,113.47,113.44,6.6301]
[1744287043461,27.18108156,113.47,113.44,15.4453]
[1744287043661,27.18108156,113.49,113.44,42.62638156]
[1744287044163,27.18108156,113.48,113.44,42.62638156]
[1744287046083,27.18108156,113.49,113.45,0.28432314]
[1744287046272,0.063,113.51,113.45,27.4654047]
[1744287046480,53.18108156,113.5,113.45,46.11505356]
[1744287046687,27.18108156,113.49,113.45,46.11505356]
[1744287046888,27.18108156,113.49,113.45,18.933972]
[1744287047493,26.0,113.5,113.46,8.8136]
[1744287047658,26.063,113.51,113.47,0.28432314]
[1744287047859,0.063,113.51,113.47,17.24471374]
[1744287048683,17.0233906,113.51,113.47,17.24471374]
[1744287048890,0.063,113.51,113.47,17.24471374]
[1744287049386,0.063,113.51,113.48,8.8121]
[1744287050170,0.063,113.51,113.48,35.93474671]
[1744287050481,0.063,113.51,113.49,7.8813]
[1744287050983,0.063,113.51,113.5,0.14216157]
[1744287051291,0.063,113.51,113.5,0.28432314]
[1744287051671,0.063,113.51,113.5,9.09482314]
[1744287051875,0.063,113.51,113.5,27.744472]
[1744287052075,0.063,113.51,113.5,54.86711871]
[1744287052477,0.063,113.54,113.52,0.28432314]
[1744287053073,0.063,113.54,113.52,27.40696985]
[1744287053285,27.18564671,113.54,113.51,0.28432314]
[1744287053673,0.063,113.54,113.51,0.28432314]
[1744287053873,27.18564671,113.54,113.51,9.09382314]
[1744287054073,0.063,113.54,113.51,9.09382314]
[1744287054273,0.063,113.54,113.51,54.86611871]
[1744287054670,0.063,113.54,113.51,0.28432314]
[1744287054671,27.18564671,113.54,113.51,0.28432314]
[1744287054978,27.18564671,113.54,113.5,0.28432314]
[1744287055385,27.18564671,113.54,113.5,27.40696985]
[1744287055593,0.063,113.54,113.52,0.28432314]
[1744287056090,0.063,113.54,113.52,9.09252314]
[1744287056301,0.063,113.54,113.52,36.21516985]
[1744287056471,0.063,113.54,113.53,45.77229557]
[1744287057287,0.063,113.54,113.53,0.28432314]
[1744287058273,0.063,113.54,113.53,9.09252314]
[1744287058797,0.063,113.54,113.53,0.28432314]
[1744287059989,0.063,113.54,113.52,0.28432314]
[1744287060189,0.063,113.54,113.52,9.09292314]
[1744287060575,0.063,113.54,113.52,36.21556985]
[1744287060776,0.063,113.54,113.53,45.77229557]
[1744287060970,0.063,113.54,113.53,46.05661871]
[1744287061185,0.063,113.55,113.54,20.27654886]
[1744287061390,0.063,113.55,113.54,128.88351871]
[1744287061589,0.063,113.57,113.55,0.28432314]
[1744287061994,0.063,113.57,113.54,82.8269]
[1744287062293,27.12264671,113.55,113.53,6.1074]
[1744287062599,27.12264671,113.54,113.51,1.5886]
[1744287062892,8.8685,113.57,113.51,10.3983]
[1744287063100,53.12264671,113.56,113.52,18.933972]
[1744287063293,0.063,113.57,113.52,46.05661871]
[1744287063590,27.18564671,113.57,113.52,46.05661871]
[1744287063894,0.063,113.57,113.55,0.28432314]
[1744287064210,0.063,113.57,113.56,6.59302314]
[1744287064377,0.063,113.57,113.56,33.71566985]
[1744287064572,0.063,113.57,113.56,61.17121871]
[1744287064886,0.063,113.57,113.56,62.72201871]
[1744287065086,0.063,113.57,113.56,143.92201871]
[1744287065589,0.063,113.58,113.57,18.933972]
[1744287065793,0.063,113.58,113.57,127.25661871]
[1744287066180,0.0001,113.58,113.57,127.25661871]
[1744287066409,0.063,113.59,113.58,27.738272]
[1744287066578,0.063,113.6,113.59,18.933972]
[1744287066999,0.063,113.6,113.59,46.05661871]
[1744287067482,0.063,113.62,113.61,44.933972]
[1744287067695,0.063,113.62,113.61,153.25661871]
[1744287068195,0.063,113.65,113.62,25.423872]
[1744287068492,0.063,113.65,113.64,47.66221871]
[1744287068890,0.063,113.65,113.64,155.98486542]
[1744287069194,0.063,113.66,113.65,0.28432314]
[1744287069381,0.063,113.66,113.65,127.25661871]
[1744287070086,0.063,113.66,113.65,81.48432314]
[1744287070277,0.063,113.66,113.65,81.34216157]
[1744287070481,0.063,113.66,113.65,81.2]
[1744287070882,0.063,113.66,113.65,108.932872]
[1744287071092,0.063,113.66,113.65,136.05551871]
[1744287071988,0.063,113.66,113.65,127.25661871]
[1744287072396,0.063,113.66,113.65,81.48432314]
[1744287073101,0.063,113.66,113.65,100.133972]
[1744287073305,0.063,113.66,113.65,81.34216157]
[1744287073491,0.063,113.66,113.65,81.2]
[1744287073805,27.18564671,113.66,113.62,6.4899]
[1744287074113,0.063,113.66,113.62,6.4899]
[1744287074396,27.18564671,113.66,113.62,15.2909]
[1744287074601,0.063,113.66,113.63,46.05661871]
[1744287074983,0.063,113.66,113.63,18.933972]
[1744287075179,27.18564671,113.66,113.62,6.4899]
[1744287075397,27.12264671,113.65,113.62,6.4899]
[1744287076183,27.18564671,113.66,113.62,6.4899]
[1744287076382,27.18564671,113.66,113.62,15.2909]
[1744287077080,27.18564671,113.66,113.62,6.4899]
[1744287077606,0.063,113.66,113.62,42.41354671]
[1744287077899,0.063,113.66,113.63,0.28432314]
[1744287078080,27.18564671,113.66,113.63,0.28432314]
[1744287078706,0.063,113.66,113.63,0.28432314]
[1744287079004,27.18564671,113.66,113.62,6.4899]
[1744287079313,27.18564671,113.66,113.61,20.19564886]
[1744287079314,27.12264671,113.64,113.61,1.546]
[1744287079900,27.12264671,113.65,113.61,10.348]
[1744287082316,27.12264671,113.65,113.61,1.546]
[1744287083997,27.12264671,113.64,113.61,0.28432314]
[1744287084515,27.12264671,113.64,113.6,0.28432314]
[1744287085814,27.12264671,113.64,113.6,9.08652314]
[1744287086829,27.12264671,113.62,113.59,6.467]
[1744287087014,27.12264671,113.61,113.58,1.72316157]
[1744287087316,27.12264671,113.61,113.58,9.08852314]
[1744287087491,27.12264671,113.61,113.58,8.94636157]
[1744287087692,27.12264671,113.64,113.6,0.14216157]
[1744287087900,27.12264671,113.64,113.6,8.94456157]
[1744287088394,27.12264671,113.63,113.6,0.28432314]
[1744287088714,27.12264671,113.61,113.56,142.04339557]
[1744287088912,27.12264671,113.61,113.58,0.28432314]
[1744287090107,27.12264671,113.62,113.58,9.08852314]
[1744287090295,27.12264671,113.62,113.58,36.21116985]
[1744287090823,27.12264671,113.62,113.58,9.08852314]
[1744287091297,16.92272116,113.62,113.58,9.08852314]
[1744287091501,16.92272116,113.62,113.58,26.0112443]
[1744287091836,16.92272116,113.63,113.58,26.0112443]
[1744287092119,26.0,113.65,113.6,17.2070443]
[1744287092321,42.92272116,113.65,113.6,17.2070443]
[1744287092701,16.92272116,113.64,113.6,17.2070443]
[1744287093101,16.92272116,113.65,113.6,17.2070443]
[1744287093523,16.92272116,113.64,113.6,26.0092443]
[1744287094027,16.92272116,113.64,113.6,0.28432314]
[1744287094217,16.92272116,113.63,113.6,0.28432314]
[1744287094601,26.0,113.64,113.6,9.08702314]
[1744287094803,42.92272116,113.64,113.6,9.08702314]
[1744287095608,42.92272116,113.64,113.6,0.28432314]
[1744287096022,26.0,113.64,113.6,9.08702314]
[1744287096224,42.92272116,113.64,113.6,9.08702314]
[1744287097424,16.92272116,113.62,113.59,8.8033]
[1744287097725,16.92272116,113.62,113.59,0.28432314]
[1744287098026,16.92272116,113.6,113.56,33.72074886]
[1744287098221,16.92272116,113.6,113.57,0.28432314]
[1744287098419,16.92272116,113.6,113.56,33.72074886]
[1744287098622,16.92272116,113.6,113.56,50.64347002]
[1744287098825,42.92272116,113.61,113.57,0.28432314]
[1744287099009,42.92272116,113.61,113.57,0.14216157]
[1744287099211,16.92272116,113.62,113.58,8.8043]
[1744287099616,16.92272116,113.63,113.59,0.28432314]
[1744287100022,16.92272116,113.63,113.59,17.2070443]
[1744287100221,16.92272116,113.64,113.59,17.2070443]
[1744287101211,16.92272116,113.62,113.59,0.28432314]
[1744287101432,16.92272116,113.62,113.58,9.08822314]
[1744287101619,16.92272116,113.61,113.58,9.08822314]
[1744287102410,16.92272116,113.62,113.58,9.08822314]
[1744287102605,16.92272116,113.62,113.58,26.0109443]
[1744287102812,16.92272116,113.63,113.58,26.0109443]
[1744287103424,16.92272116,113.63,113.59,16.92272116]
[1744287103624,16.92272116,113.63,113.58,31.09912314]
[1744287103825,16.92272116,113.63,113.59,16.92272116]
[1744287104429,81.5,113.65,113.6,0.28432314]
[1744287104619,98.42272116,113.65,113.6,17.2070443]
[1744287104817,16.92272116,113.64,113.6,17.2070443]
[1744287105126,16.92272116,113.64,113.6,0.28432314]
[1744287106034,16.92272116,113.63,113.6,0.28432314]
[1744287106414,8.8615,113.66,113.6,26.0096443]
[1744287106636,16.92272116,113.64,113.6,26.0096443]
[1744287106926,8.8615,113.66,113.6,26.0096443]
[1744287107122,16.92272116,113.64,113.6,26.0096443]
[1744287107324,16.92272116,113.64,113.6,9.08692314]
[1744287107719,8.8615,113.66,113.6,9.08692314]
[1744287107913,16.98572116,113.66,113.61,25.06342116]
[1744287108112,0.063,113.66,113.61,25.06342116]
[1744287108333,16.98572116,113.66,113.61,25.06342116]
[1744287108925,16.92272116,113.65,113.61,8.1407]
[1744287109314,0.063,113.66,113.61,25.06342116]
[1744287109515,16.98572116,113.66,113.62,8.8012]
[1744287109738,16.92272116,113.65,113.62,8.8012]
[1744287110426,16.98572116,113.66,113.62,8.8012]
[1744287111838,0.063,113.66,113.63,0.28432314]
[1744287113840,0.063,113.66,113.63,9.08422314]
[1744287114042,0.063,113.66,113.63,26.0069443]
[1744287115743,0.063,113.66,113.64,16.92272116]
[1744287116842,0.063,113.66,113.65,8.7989]
[1744287117418,0.063,113.66,113.64,8.7995]
[1744287117634,16.92272116,113.65,113.61,8.1407]
[1744287118117,16.92272116,113.65,113.62,0.28432314]
[1744287118519,0.063,113.66,113.62,0.28432314]
[1744287118915,16.92272116,113.65,113.62,9.08512314]
[1744287119439,16.92272116,113.65,113.62,0.28432314]
[1744287120029,16.92272116,113.65,113.62,9.08552314]
[1744287120439,16.92272116,113.65,113.61,16.9425]
[1744287121639,16.98572116,113.66,113.62,0.28432314]
[1744287121847,16.98572116,113.66,113.62,17.2070443]
[1744287122743,42.98572116,113.66,113.62,17.2070443]
[1744287122940,0.063,113.66,113.62,35.85669316]
[1744287123119,0.063,113.66,113.65,8.7989]
[1744287123827,0.063,113.66,113.63,17.2070443]
[1744287123828,0.063,113.66,113.64,8.7993]
[1744287124141,16.98572116,113.66,113.61,8.1407]
[1744287124330,16.92272116,113.64,113.61,16.9424]
[1744287124529,16.92272116,113.64,113.61,8.1407]
[1744287124842,16.92272116,113.64,113.61,16.9427]
[1744287125541,16.92272116,113.64,113.61,8.1407]
[1744287125936,16.92272116,113.64,113.61,16.9427]
[1744287126643,16.92272116,113.64,113.61,8.1407]
[1744287126833,16.92272116,113.63,113.59,44.37537002]
[1744287127031,16.92272116,113.63,113.6,0.28432314]
[1744287128658,16.92272116,113.63,113.59,8.803]
[1744287128952,16.92272116,113.63,113.58,89.0715]
[1744287128953,16.92272116,113.61,113.58,89.0715]
[1744287129163,16.92272116,113.6,113.56,8.8355]
[1744287129398,16.92272116,113.57,113.56,0.03]
[1744287130167,16.92272116,113.57,113.55,0.03]
[1744287130464,16.92272116,113.58,113.53,0.03]
[1744287130465,42.92272116,113.56,113.53,0.03]
[1744287130669,42.92272116,113.54,113.53,0.03]
[1744287131336,81.5,113.57,113.53,0.03]
[1744287131667,16.92272116,113.54,113.53,0.03]
[1744287131971,51.73012116,113.54,113.53,0.03]
[1744287133070,42.92272116,113.54,113.53,0.03]
[1744287136457,18.22,113.56,113.53,0.03]
[1744287136654,16.92272116,113.54,113.53,0.03]
[1744287137962,8.807,113.55,113.53,0.03]
[1744287138154,42.92272116,113.54,113.53,0.03]
[1744287140160,26.0,113.54,113.53,0.03]
[1744287140356,42.92272116,113.54,113.53,0.03]
[1744287143757,68.65284232,113.54,113.5,0.03]
[1744287144077,16.92272116,113.51,113.5,0.03]
[1744287146971,16.92272116,113.52,113.5,0.03]
[1744287147977,42.92272116,113.53,113.5,0.03]
[1744287148174,18.22,113.56,113.5,0.31432314]
[1744287148365,302.22,113.57,113.53,16.92272116]
[1744287148577,319.14272116,113.57,113.53,0.28432314]
[1744287150166,319.14272116,113.57,113.54,8.8074]
[1744287150969,16.92272116,113.56,113.54,8.8074]
[1744287153786,319.14272116,113.57,113.54,8.8074]
[1744287155488,16.92272116,113.56,113.54,8.8074]
[1744287155978,319.14272116,113.57,113.54,8.8074]
[1744287156684,319.14272116,113.57,113.53,8.8082]
[1744287157177,319.14272116,113.57,113.53,30.8288]
[1744287157381,0.063,113.6,113.54,35.85669316]
[1744287157679,16.98572116,113.6,113.55,16.92272116]
[1744287157862,16.92272116,113.59,113.55,16.92272116]
[1744287158071,16.98572116,113.6,113.56,16.92272116]
[1744287158480,0.063,113.6,113.57,17.2070443]
[1744287158667,0.063,113.6,113.58,8.8043]
[1744287160485,0.063,113.6,113.59,0.28432314]
[1744287160786,0.063,113.6,113.59,9.08782314]
[1744287162666,0.063,113.6,113.59,26.0105443]
[1744287163881,0.063,113.6,113.59,44.66019316]
[1744287163882,0.0001,113.6,113.59,44.66019316]
[1744287164187,0.0001,113.6,113.59,51.31499316]
[1744287164484,33.28572116,113.66,113.62,0.28432314]
[1744287164681,16.363,113.66,113.62,17.2070443]
[1744287164985,16.363,113.66,113.63,8.8004]
[1744287165172,33.28572116,113.66,113.63,8.8004]
[1744287166686,0.063,113.66,113.64,0.28432314]
[1744287166902,0.063,113.66,113.64,17.2070443]
[1744287167076,0.063,113.66,113.65,8.7989]
[1744287167381,0.063,113.66,113.65,32.4385443]
[1744287168485,0.063,113.66,113.65,51.08819316]
[1744287168681,0.063,113.66,113.65,52.60259316]
[1744287170486,0.063,113.66,113.65,35.679872]
[1744287170659,0.063,113.66,113.65,52.60259316]
[1744287173489,0.063,113.66,113.65,33.9529443]
[1744287173687,0.063,113.67,113.65,52.60259316]
[1744287173998,0.063,113.67,113.66,35.57237002]
[1744287174573,0.063,113.67,113.66,18.64964886]
[1744287174799,0.063,113.67,113.66,17.2070443]
[1744287174976,0.063,113.67,113.66,26.0051443]
[1744287175291,0.063,113.67,113.66,44.65479316]
[1744287175479,0.063,113.67,113.66,26.0051443]
[1744287175674,0.063,113.67,113.66,8.7981]
[1744287176186,0.063,113.67,113.65,15.2311]
[1744287176490,16.98572116,113.67,113.65,15.2311]
[1744287177709,16.98572116,113.67,113.65,6.4326]
[1744287177999,16.92272116,113.66,113.63,0.14216157]
[1744287178507,0.063,113.67,113.63,25.86488273]
[1744287178666,0.063,113.67,113.63,8.94216157]
[1744287178865,0.063,113.67,113.63,25.86488273]
[1744287179090,16.98572116,113.67,113.63,8.94216157]
[1744287179301,16.98572116,113.67,113.63,25.86488273]
[1744287179498,0.063,113.67,113.63,25.86488273]
[1744287180184,0.063,113.67,113.64,17.2070443]
[1744287180368,0.063,113.67,113.66,16.92272116]
[1744287180575,0.063,113.67,113.64,18.933972]
[1744287180898,0.063,113.67,113.64,35.85669316]
[1744287181071,0.063,113.67,113.64,18.933972]
[1744287181271,0.063,113.67,113.64,0.28432314]
[1744287181780,0.063,113.67,113.64,9.08372314]
[1744287182998,0.063,113.67,113.64,26.0064443]
[1744287183179,0.063,113.67,113.64,9.08372314]
[1744287183592,16.98572116,113.67,113.63,8.8004]
[1744287183804,16.92272116,113.66,113.62,16.7355]
[1744287184101,0.063,113.67,113.62,8.8008]
[1744287184102,16.92272116,113.65,113.62,8.8008]
[1744287184504,16.92272116,113.66,113.62,8.8008]
[1744287184785,0.063,113.67,113.63,35.85669316]
[1744287184988,0.063,113.67,113.64,16.92272116]
[1744287185709,0.063,113.67,113.64,8.7997]
[1744287186798,0.063,113.67,113.64,25.72242116]
[1744287187291,0.063,113.67,113.65,0.28432314]
[1744287187479,0.063,113.67,113.66,17.2070443]
[1744287187679,0.063,113.67,113.66,35.85669316]
[1744287187885,0.063,113.67,113.66,44.65479316]
[1744287189797,0.063,113.67,113.66,26.0051443]
[1744287190385,0.063,113.67,113.65,14.8549]
[1744287190698,0.063,113.67,113.65,31.77762116]
[1744287191898,0.063,113.67,113.66,16.92272116]
[1744287192101,0.063,113.67,113.66,35.85669316]
[1744287192416,0.063,113.7,113.67,18.933972]
[1744287192701,0.063,113.7,113.69,35.57237002]
[1744287193275,0.063,113.71,113.7,25.423572]
[1744287193477,0.063,113.71,113.7,140.46901432]
[1744287193676,0.063,113.71,113.7,123.54629316]
[1744287193876,0.063,113.71,113.7,132.34129316]
[1744287194684,0.063,113.71,113.7,115.418572]
[1744287194995,0.063,113.71,113.7,6.4896]
[1744287195197,16.98572116,113.71,113.67,24.92244886]
[1744287195498,16.92272116,113.69,113.66,8.7977]
[1744287195791,16.92272116,113.68,113.66,8.7977]
[1744287195997,16.92272116,113.69,113.66,8.7977]
[1744287196493,8.8573,113.71,113.66,8.7977]
[1744287196794,16.92272116,113.69,113.66,8.7977]
[1744287197506,27.04203127,113.69,113.66,8.7977]
[1744287198184,27.04203127,113.7,113.66,8.7977]
[1744287198492,27.10503127,113.71,113.67,27.32635441]
[1744287198681,27.04203127,113.7,113.67,0.28432314]
[1744287199500,27.04203127,113.7,113.66,8.7977]
[1744287199700,27.04203127,113.7,113.64,6.2728]
[1744287199701,27.04203127,113.67,113.64,6.2728]
[1744287200091,27.04203127,113.68,113.66,8.7981]
[1744287200697,27.04203127,113.68,113.65,9.08282314]
[1744287201598,41.14203127,113.7,113.65,36.12485441]
[1744287201907,41.14203127,113.7,113.67,0.28432314]
[1744287201908,14.1,113.7,113.67,0.28432314]
[1744287202208,14.1,113.7,113.68,8.7966]
[1744287202714,41.14203127,113.7,113.67,9.08122314]
[1744287203107,41.14203127,113.7,113.67,0.28432314]
[1744287203904,41.14203127,113.7,113.66,35.83973127]
[1744287204108,41.14203127,113.7,113.66,8.7977]
[1744287204305,27.04203127,113.69,113.65,36.12485441]
[1744287204810,27.04203127,113.69,113.65,35.84053127]
[1744287204983,41.14203127,113.7,113.65,35.84053127]
[1744287205183,41.14203127,113.7,113.66,27.04203127]
[1744287205387,14.1,113.7,113.66,27.04203127]
[1744287205888,41.14203127,113.7,113.66,27.04203127]
[1744287206412,41.14203127,113.7,113.67,8.7973]
[1744287206789,14.1,113.7,113.67,8.7973]
[1744287207214,14.1,113.7,113.67,35.83933127]
[1744287207699,41.14203127,113.7,113.67,8.7973]
[1744287208609,49.93723127,113.7,113.66,27.04203127]
[1744287208800,27.04203127,113.69,113.65,35.84033127]
[1744287210308,27.04203127,113.69,113.65,8.7983]
[1744287210518,27.04203127,113.69,113.65,35.84033127]
[1744287210887,27.04203127,113.67,113.61,24.83894886]
[1744287211103,27.04203127,113.66,113.62,35.84323127]
[1744287211307,27.04203127,113.66,113.62,8.8012]
[1744287211689,27.04203127,113.67,113.62,35.84323127]
[1744287211888,27.04203127,113.68,113.63,27.04203127]
[1744287212093,27.04203127,113.69,113.64,27.04203127]
[1744287212294,27.04203127,113.68,113.64,35.84133127]
[1744287212708,27.04203127,113.69,113.64,35.84133127]
[1744287212909,22.8955,113.7,113.64,35.84133127]
[1744287213116,27.04203127,113.69,113.64,35.84133127]
[1744287215291,27.04203127,113.69,113.65,27.32635441]
[1744287215696,27.04203127,113.68,113.65,0.28432314]
[1744287216395,27.04203127,113.69,113.65,9.08322314]
[1744287216818,14.1,113.7,113.65,9.08322314]
[1744287216998,27.04203127,113.69,113.65,36.12525441]
[1744287217199,41.14203127,113.7,113.65,36.12525441]
[1744287217513,41.14203127,113.7,113.66,16.89949277]
[1744287217514,30.99949277,113.7,113.66,16.89949277]
[1744287218097,30.99949277,113.7,113.66,25.69689277]
[1744287218301,39.79459277,113.7,113.66,8.7974]
[1744287218501,25.69459277,113.7,113.66,8.7974]
[1744287219716,16.89949277,113.69,113.65,10.62632314]
[1744287219925,16.89949277,113.68,113.65,0.28432314]
[1744287220695,16.89949277,113.68,113.64,8.7993]
[1744287220895,16.89949277,113.67,113.63,0.14216157]
[1744287221122,16.89949277,113.66,113.62,18.43149277]
[1744287221323,8.7951,113.7,113.63,16.89949277]
[1744287221499,16.89949277,113.68,113.63,16.89949277]
[1744287221901,16.89949277,113.67,113.64,8.7997]
[1744287222120,16.89949277,113.68,113.64,8.7997]
[1744287222314,16.89949277,113.67,113.62,18.71581591]
[1744287222932,16.89949277,113.68,113.63,17.18381591]
[1744287223105,16.89949277,113.69,113.65,17.18381591]
[1744287223310,16.89949277,113.69,113.65,16.89949277]
[1744287223711,16.89949277,113.68,113.64,18.933972]
[1744287223912,16.89949277,113.67,113.63,9.08472314]
[1744287224113,16.89949277,113.67,113.63,8.8004]
[1744287225425,16.89949277,113.66,113.62,10.3328]
[1744287225815,16.89949277,113.64,113.61,14.9909]
[1744287226022,16.89949277,113.65,113.61,14.9909]